bitfinex/quotes_BTCUSD_20250814
["timestamp","ask_amount","ask_price","bid_price","bid_amount"]
[1755177900243,0.10872325,118170.0,118160.0,0.66926201]
[1755177900469,0.001,118170.0,118160.0,0.67244201]
[1755177900710,0.001,118170.0,118160.0,0.85884104]
[1755177900955,0.02375,118170.0,118160.0,0.85984104]
[1755177901197,0.02375,118170.0,118160.0,0.79216201]
[1755177901447,0.34420682,118220.0,118210.0,0.16919042]
[1755177901448,0.02275,118220.0,118210.0,0.16919042]
[1755177901694,0.08272325,118220.0,118210.0,0.16919042]
[1755177901943,0.25189936,118220.0,118210.0,0.16919042]
[1755177902172,0.02275,118200.0,118190.0,0.18083248]
[1755177902398,0.02275,118190.0,118180.0,0.33580035]
[1755177902625,0.08272325,118200.0,118190.0,0.16921905]
[1755177902626,0.10547325,118200.0,118190.0,0.16921905]
[1755177902831,0.02275,118200.0,118190.0,0.17239905]
[1755177903447,0.002,118220.0,118210.0,0.16919042]
[1755177903659,0.10747325,118220.0,118210.0,0.33893042]
[1755177903864,0.02475,118220.0,118210.0,0.33893042]
[1755177904074,0.002,118220.0,118210.0,0.17237042]
[1755177904282,0.10747325,118220.0,118210.0,0.33575042]
[1755177904493,0.02275,118210.0,118200.0,0.16919257]
[1755177904703,0.10547325,118210.0,118200.0,0.33575257]
[1755177905125,0.02275,118200.0,118190.0,0.18086]
[1755177905331,0.27467798,118200.0,118190.0,0.34424]
[1755177905546,0.02275,118170.0,118160.0,0.84428511]
[1755177905761,0.02275,118170.0,118160.0,0.67772511]
[1755177905979,0.02275,118170.0,118160.0,0.68090511]
[1755177906193,0.19199769,118170.0,118160.0,0.5]
[1755177906417,0.17768,118190.0,118160.0,0.67244201]
[1755177906624,0.10547325,118180.0,118170.0,0.17640455]
[1755177906862,0.10547325,118180.0,118170.0,0.33873337]
[1755177907286,0.02275,118170.0,118160.0,0.84428511]
[1755177907488,0.10547325,118170.0,118160.0,0.84821511]
[1755177907715,0.12084851,118170.0,118160.0,0.84428511]
[1755177908162,0.12084851,118170.0,118150.0,0.17773901]
[1755177908363,0.23457571,118080.0,118070.0,0.04563142]
[1755177908562,1.65516565,118080.0,118070.0,0.04563142]
[1755177908842,1.65516565,118080.0,118070.0,0.01721599]
[1755177909046,0.20961875,118050.0,118040.0,0.00047]
[1755177909169,0.22401507,118050.0,118040.0,0.00047]
[1755177910253,0.16841973,118050.0,118040.0,0.00047]
[1755177910452,0.16941724,118060.0,118050.0,0.16941973]
[1755177910453,0.02275,118060.0,118050.0,0.16941973]
[1755177910720,0.01535257,118080.0,118050.0,0.29979]
[1755177910869,0.19214103,118070.0,118060.0,0.00293]
[1755177911080,0.19214103,118070.0,118050.0,0.29686]
[1755177911283,0.02275,118070.0,118060.0,0.12438]
[1755177911491,0.006,118080.0,118070.0,0.17038899]
[1755177911713,0.02875,118080.0,118070.0,0.17038899]
[1755177911893,0.02875,118080.0,118070.0,0.17331899]
[1755177912102,0.19212669,118080.0,118070.0,0.00293]
[1755177912505,0.1778426,118090.0,118070.0,0.17231868]
[1755177912704,0.02275,118080.0,118070.0,0.17232103]
[1755177913084,0.16937024,118110.0,118090.0,0.1693544]
[1755177913323,0.25207213,118100.0,118090.0,0.17288]
[1755177913472,0.08272325,118100.0,118090.0,0.34224235]
[1755177913693,0.08272325,118100.0,118090.0,0.34517235]
[1755177913904,0.01533314,118130.0,118120.0,0.16931933]
[1755177914127,0.01533314,118130.0,118120.0,0.17561]
[1755177914128,0.192055,118130.0,118120.0,0.17561]
[1755177914331,0.29012442,118130.0,118120.0,0.17268]
[1755177914538,0.02275,118110.0,118100.0,0.17549]
[1755177914741,0.10547325,118110.0,118100.0,0.34483801]
[1755177914941,0.10547325,118110.0,118090.0,0.46710235]
[1755177914942,0.02275,118100.0,118090.0,0.46710235]
[1755177915155,0.10547325,118100.0,118090.0,0.47003235]
[1755177915795,0.19313161,118120.0,118110.0,0.16933367]
[1755177915796,0.01534617,118120.0,118110.0,0.16933367]
[1755177915995,0.03809726,118140.0,118130.0,0.169305]
[1755177916194,0.03809726,118140.0,118130.0,0.468695]
[1755177916195,0.03776011,118140.0,118130.0,0.468695]
[1755177916410,0.10547325,118140.0,118130.0,0.468695]
[1755177916823,0.08272325,118140.0,118130.0,0.468695]
[1755177917034,0.02275,118150.0,118140.0,0.16929067]
[1755177917238,0.10547325,118150.0,118140.0,0.17222067]
[1755177917456,0.27474959,118150.0,118140.0,0.16929067]
[1755177917674,0.02275,118140.0,118130.0,0.465565]
[1755177917881,0.02275,118150.0,118140.0,0.16929067]
[1755177918105,0.10547325,118150.0,118140.0,0.16929067]
[1755177918303,0.10547325,118150.0,118140.0,0.34390067]
[1755177918919,0.10547325,118150.0,118130.0,0.295685]
[1755177918920,0.02275,118140.0,118130.0,0.466125]
[1755177919130,0.10547325,118140.0,118130.0,0.341745]
[1755177919360,0.10547325,118140.0,118130.0,0.343675]
[1755177919753,0.08272325,118140.0,118130.0,0.343675]
[1755177919944,0.10547325,118140.0,118130.0,0.343675]
[1755177920155,0.10547325,118140.0,118130.0,0.340745]
[1755177920553,0.10547325,118140.0,118130.0,0.343675]
[1755177920554,0.08472325,118140.0,118130.0,0.343675]
[1755177920758,0.10547325,118140.0,118130.0,0.343675]
[1755177920959,0.08272325,118140.0,118130.0,0.343075]
[1755177921172,0.25201392,118140.0,118120.0,0.16931697]
[1755177921375,0.25202825,118130.0,118120.0,0.34003697]
[1755177921573,0.25202825,118130.0,118110.0,0.33989367]
[1755177921574,0.16931933,118120.0,118110.0,0.33989367]
[1755177921743,0.08272325,118120.0,118110.0,0.33989367]
[1755177922152,0.08272325,118120.0,118110.0,0.34282367]
[1755177922744,0.17129067,118140.0,118120.0,0.16930691]
[1755177922944,0.08272325,118130.0,118120.0,0.17223691]
[1755177923272,0.19517547,118160.0,118140.0,0.16928293]
[1755177923468,0.25199959,118150.0,118140.0,0.17008]
[1755177923671,0.25199959,118150.0,118130.0,0.16928673]
[1755177923672,0.16929067,118140.0,118130.0,0.16992]
[1755177923873,0.08272325,118140.0,118130.0,0.339225]
[1755177924078,0.08272325,118140.0,118130.0,0.342155]
[1755177924281,0.35808883,118180.0,118130.0,0.342155]
[1755177924282,0.17776654,118180.0,118130.0,0.342155]
[1755177924445,0.16926201,118160.0,118140.0,0.18067274]
[1755177924649,0.08272325,118150.0,118140.0,0.18067274]
[1755177925024,0.08272325,118150.0,118140.0,0.35035274]
[1755177925670,0.33894795,118190.0,118150.0,0.16927634]
[1755177925671,0.002,118160.0,118150.0,0.16927634]
[1755177925872,0.002,118160.0,118150.0,0.34164634]
[1755177926288,0.17768113,118190.0,118170.0,0.16923819]
[1755177926504,0.08272325,118180.0,118170.0,0.16923819]
[1755177926705,0.08272325,118180.0,118170.0,0.34132819]
[1755177926950,0.16929728,118200.0,118190.0,0.16921905]
[1755177926951,0.00770514,118200.0,118190.0,0.16921905]
[1755177927104,0.17768524,118220.0,118200.0,0.16918839]
[1755177927105,0.17688124,118220.0,118200.0,0.16918839]
[1755177927306,0.17688124,118220.0,118190.0,0.34961]
[1755177927307,0.08272325,118210.0,118190.0,0.34961]
[1755177927530,0.25191367,118210.0,118190.0,0.34668]
[1755177927739,0.16921905,118190.0,118180.0,0.33810087]
[1755177927947,0.08272325,118190.0,118180.0,0.16922087]
[1755177928125,0.09813272,118190.0,118180.0,0.17215087]
[1755177928328,0.01540947,118190.0,118180.0,0.17215087]
[1755177928534,0.01540947,118190.0,118180.0,0.29653087]
[1755177929106,0.18541843,118230.0,118180.0,0.29653087]
[1755177929107,0.1691618,118230.0,118200.0,0.17763831]
[1755177929284,0.08272325,118220.0,118210.0,0.33777001]
[1755177929446,0.26731161,118220.0,118210.0,0.1686]
[1755177929624,0.16919042,118210.0,118200.0,0.17763831]
[1755177929827,0.27032592,118210.0,118200.0,0.34595831]
[1755177930069,0.0981355,118210.0,118200.0,0.34595831]
[1755177930304,0.16920473,118200.0,118190.0,0.16816]
[1755177930485,0.26734023,118200.0,118190.0,0.16816]
[1755177930685,0.26734023,118200.0,118180.0,0.33718087]
[1755177930886,0.2519423,118190.0,118180.0,0.33718087]
[1755177931093,0.0981355,118190.0,118180.0,0.34011087]
[1755177931356,0.01541225,118190.0,118180.0,0.46449087]
[1755177931726,0.34544886,118240.0,118220.0,0.16917611]
[1755177931941,0.08272325,118230.0,118220.0,0.33693611]
[1755177932146,0.09812902,118230.0,118220.0,0.33693611]
[1755177932272,0.26729082,118230.0,118220.0,0.33986611]
[1755177932478,0.26729082,118230.0,118210.0,0.17763847]
[1755177932479,0.16917611,118220.0,118210.0,0.17763847]
[1755177932678,0.09812902,118220.0,118210.0,0.34515847]
[1755177932899,0.09812902,118220.0,118210.0,0.34808847]
[1755177933320,0.01540577,118220.0,118210.0,0.47246847]
[1755177933767,0.17762726,118270.0,118260.0,0.16911889]
[1755177933768,0.17680491,118270.0,118260.0,0.16911889]
[1755177933931,0.08272325,118270.0,118260.0,0.33623889]
[1755177934724,0.16911889,118260.0,118240.0,0.16914634]
[1755177934931,0.08272325,118260.0,118250.0,0.16913319]
[1755177935354,0.25184214,118260.0,118240.0,0.34448371]
[1755177935576,0.17755981,118270.0,118250.0,0.16913319]
[1755177935798,0.00769127,118270.0,118260.0,0.33599889]
[1755177936010,0.1767819,118280.0,118260.0,0.33599889]
[1755177936221,0.17110459,118270.0,118260.0,0.16688]
[1755177936424,0.00969127,118270.0,118260.0,0.33892889]
[1755177936626,0.17676469,118290.0,118270.0,0.17755981]
[1755177936855,0.16909029,118280.0,118270.0,0.17755981]
[1755177937067,0.16910459,118270.0,118260.0,0.17204889]
[1755177937272,0.25182784,118270.0,118250.0,0.17758935]
[1755177937481,0.25184214,118260.0,118250.0,0.16688]
[1755177937684,0.16913319,118250.0,118230.0,0.17759099]
[1755177937887,0.08272325,118250.0,118240.0,0.33602749]
[1755177938109,0.25185644,118250.0,118240.0,0.33602749]
[1755177938333,0.17755981,118270.0,118260.0,0.16911889]
[1755177938506,0.25182784,118270.0,118260.0,0.33599889]
[1755177938743,0.08272325,118270.0,118260.0,0.33901889]
[1755177938956,0.005,118280.0,118270.0,0.16910459]
[1755177939164,0.005,118280.0,118270.0,0.29587459]
[1755177939406,0.17751693,118300.0,118270.0,0.46271459]
[1755177939635,0.16907634,118290.0,118280.0,0.00302]
[1755177939851,0.26792133,118300.0,118280.0,0.33592922]
[1755177940053,0.26024018,118300.0,118280.0,0.33592922]
[1755177940265,0.26024018,118300.0,118280.0,0.16684]
[1755177940510,0.16909029,118280.0,118270.0,0.16910459]
[1755177940726,0.26326805,118280.0,118260.0,0.33595889]
[1755177940932,0.26027051,118280.0,118260.0,0.33595889]
[1755177941140,0.26027051,118280.0,118260.0,0.33897889]
[1755177941351,0.08272325,118280.0,118270.0,0.17121839]
[1755177941570,0.18251693,118300.0,118280.0,0.16909029]
[1755177941842,0.09541849,118300.0,118290.0,0.17118943]
[1755177942087,0.005,118300.0,118290.0,0.17209599]
[1755177942321,0.005,118300.0,118290.0,0.29584599]
[1755177942597,0.18538052,118320.0,118300.0,0.16904907]
[1755177942802,0.00789524,118320.0,118310.0,0.3410205]
[1755177943013,0.0002,118320.0,118310.0,0.33890741]
[1755177943261,0.0002,118320.0,118310.0,0.46265741]
[1755177943456,0.0002,118320.0,118310.0,0.54538066]
[1755177944538,0.0022,118320.0,118310.0,0.54538066]
[1755177944761,0.24451004,118380.0,118360.0,0.16896523]
[1755177944973,0.24451004,118380.0,118370.0,0.16896173]
[1755177944974,0.09060668,118380.0,118370.0,0.16896173]
[1755177945178,0.09375348,118380.0,118370.0,0.16896173]
[1755177945385,0.0002,118380.0,118370.0,0.17198173]
[1755177945871,0.01555185,118380.0,118370.0,0.29573173]
[1755177946289,0.02355185,118380.0,118370.0,0.29573173]
[1755177946490,0.01555185,118380.0,118370.0,0.29573173]
[1755177947118,0.02355185,118380.0,118370.0,0.29673173]
[1755177947465,0.01555185,118380.0,118370.0,0.29573173]
[1755177947875,0.02355185,118380.0,118370.0,0.29673173]
[1755177948074,0.02355185,118380.0,118370.0,0.37945498]
[1755177948643,0.01855185,118380.0,118370.0,0.37845498]
[1755177948865,0.01955185,118380.0,118370.0,0.37845498]
[1755177949073,0.01655185,118380.0,118370.0,0.37845498]
[1755177949281,0.01555185,118380.0,118370.0,0.37845498]
[1755177950102,0.01555185,118380.0,118370.0,0.54509498]
[1755177950319,0.01532064,118380.0,118370.0,0.55354306]
[1755177950523,0.0002,118400.0,118390.0,0.16893318]
[1755177950739,0.0002,118400.0,118390.0,0.33557318]
[1755177950936,0.0002,118400.0,118390.0,0.16893318]
[1755177951590,0.16893318,118390.0,118370.0,0.16896173]
[1755177951801,0.08272325,118390.0,118380.0,0.16894745]
[1755177952028,0.25464643,118390.0,118370.0,0.33552173]
[1755177952246,0.08272325,118380.0,118370.0,0.33652173]
[1755177952452,0.2516707,118380.0,118370.0,0.001]
[1755177952666,0.16896173,118370.0,118350.0,0.1689658]
[1755177952876,0.168976,118360.0,118340.0,0.16896845]
[1755177953089,0.171966,118360.0,118350.0,0.33555028]
[1755177953296,0.08571325,118360.0,118350.0,0.33555028]
[1755177953522,0.25468925,118360.0,118340.0,0.33552845]
[1755177953740,0.25171353,118350.0,118320.0,0.17182533]
[1755177953949,0.26016304,118350.0,118330.0,0.33557862]
[1755177954160,0.00299,118340.0,118330.0,0.33557862]
[1755177954373,0.08272325,118340.0,118330.0,0.33557862]
[1755177955440,0.26017803,118340.0,118320.0,0.33559252]
[1755177955675,0.08272325,118330.0,118320.0,0.33559252]
[1755177955874,0.25174209,118330.0,118320.0,0.33559252]
[1755177956284,0.08272325,118330.0,118320.0,0.33559252]
[1755177956867,0.005,118340.0,118330.0,0.16901884]
[1755177956868,0.002,118340.0,118330.0,0.16901884]
[1755177957782,0.002,118340.0,118290.0,0.16898386]
[1755177957783,0.16904878,118310.0,118290.0,0.16898386]
[1755177957983,0.16903389,118320.0,118300.0,0.16652]
[1755177958240,0.25177066,118310.0,118290.0,0.16898386]
[1755177958401,0.25177066,118310.0,118300.0,0.16652]
[1755177958602,0.16907599,118290.0,118280.0,0.00266898]
[1755177958825,0.08272325,118290.0,118280.0,0.17175927]
[1755177959028,0.08272325,118290.0,118280.0,0.16918898]
[1755177959318,0.25179924,118290.0,118280.0,0.00266898]
[1755177959676,0.25179924,118290.0,118280.0,0.16918898]
[1755177960317,0.25179924,118290.0,118280.0,0.16914898]
[1755177960771,0.25478924,118290.0,118280.0,0.00266898]
[1755177960972,0.27323826,118290.0,118280.0,0.00266898]
[1755177961549,0.25379924,118290.0,118280.0,0.00266898]
[1755177962189,0.25379924,118290.0,118280.0,0.16914898]
[1755177962412,0.25379924,118290.0,118280.0,0.33823927]
[1755177962618,0.17107599,118290.0,118280.0,0.34125927]
[1755177962835,0.17107599,118290.0,118280.0,0.00266898]
[1755177963046,0.17107599,118290.0,118280.0,0.16914898]
[1755177963047,0.25379924,118290.0,118280.0,0.16914898]
[1755177963273,0.25379924,118290.0,118280.0,0.00266898]
[1755177963485,1.11816736,118290.0,118280.0,0.00266898]
[1755177963709,1.45816736,118290.0,118280.0,1e-08]
[1755177963920,0.16910459,118270.0,118260.0,0.16648]
[1755177964126,0.16914749,118240.0,118230.0,0.07915712]
[1755177964338,0.17759855,118260.0,118240.0,0.16914749]
[1755177964570,0.25185644,118250.0,118230.0,0.24831892]
[1755177964776,0.25185644,118250.0,118240.0,0.16648]
[1755177965467,0.16914749,118240.0,118230.0,0.16648]
[1755177965700,0.0911799,118250.0,118240.0,0.16914749]
[1755177965930,0.16911889,118260.0,118230.0,0.37206892]
[1755177966171,0.16914749,118240.0,118230.0,0.06767903]
[1755177966410,0.16914749,118240.0,118190.0,0.51978766]
[1755177966652,0.21931933,118120.0,118080.0,0.47859579]
[1755177966875,0.21931933,118120.0,118080.0,0.18]
[1755177966876,0.21936235,118090.0,118080.0,0.18]
[1755177967102,0.55936235,118090.0,118080.0,0.18]
[1755177967311,0.55936235,118090.0,118080.0,0.29398]
[1755177967312,0.39,118090.0,118080.0,0.29398]
[1755177967536,0.55936235,118090.0,118080.0,0.29398]
[1755177967747,0.21936235,118090.0,118080.0,0.29398]
[1755177967952,0.23475396,118090.0,118080.0,0.29398]
[1755177968176,0.23475396,118090.0,118080.0,0.11398]
[1755177968417,0.21936235,118090.0,118080.0,0.11703]
[1755177968633,0.16938849,118080.0,118060.0,0.18152]
[1755177968847,0.16938849,118080.0,118070.0,0.00305]
[1755177969058,0.23475239,118080.0,118070.0,0.00305]
[1755177969264,0.16939103,118070.0,118060.0,0.29855]
[1755177969473,0.16938849,118080.0,118070.0,0.00305]
[1755177969690,0.21938849,118080.0,118070.0,0.00728476]
[1755177969893,0.16937669,118080.0,118070.0,0.12126476]
[1755177970323,0.21937669,118080.0,118070.0,0.11803]
[1755177970536,0.051,118090.0,118070.0,0.11803]
[1755177970747,0.22036333,118090.0,118080.0,0.11703]
[1755177971217,0.21932227,118120.0,118090.0,0.17781049]
[1755177971428,0.16934963,118100.0,118090.0,0.08272325]
[1755177971644,0.16934963,118100.0,118090.0,0.18064]
[1755177971852,0.17037167,118090.0,118070.0,0.004]
[1755177972054,0.16937669,118080.0,118070.0,0.00705]
[1755177972266,0.16937669,118080.0,118070.0,0.00605]
[1755177972476,0.16937669,118080.0,118070.0,0.003]
[1755177972682,0.16937669,118080.0,118070.0,0.18328]
[1755177972915,0.16937669,118080.0,118070.0,0.18633]
[1755177972916,0.05,118080.0,118070.0,0.18633]
[1755177973126,0.21936248,118090.0,118070.0,0.46670061]
[1755177973335,0.05,118100.0,118090.0,0.16936235]
[1755177973559,0.01528723,118100.0,118090.0,0.28839235]
[1755177973772,0.21937441,118130.0,118110.0,0.16933147]
[1755177973981,0.23466439,118130.0,118120.0,0.18]
[1755177974182,0.06528998,118130.0,118120.0,0.35236933]
[1755177974388,0.06528998,118130.0,118120.0,0.46634933]
[1755177974826,0.01528998,118130.0,118120.0,0.54907258]
[1755177975037,0.05,118140.0,118130.0,0.17775709]
[1755177975259,0.01529023,118140.0,118130.0,0.37751034]
[1755177975891,0.01529023,118140.0,118130.0,0.41995936]
[1755177976133,0.05,118160.0,118150.0,0.16927634]
[1755177976338,0.06529481,118160.0,118150.0,0.34847634]
[1755177976566,0.23455682,118160.0,118150.0,0.17912]
[1755177976772,0.01529481,118160.0,118150.0,0.35144634]
[1755177976980,0.06529481,118160.0,118150.0,0.46542634]
[1755177977428,0.1845602,118160.0,118150.0,0.11703]
[1755177977631,0.06629819,118160.0,118150.0,0.34831634]
[1755177977847,0.06629819,118160.0,118150.0,0.35136634]
[1755177978252,0.06629847,118160.0,118150.0,0.35136634]
[1755177978454,0.01629847,118160.0,118150.0,0.46534634]
[1755177978678,0.01629847,118160.0,118150.0,0.54906959]
[1755177978882,0.01529847,118160.0,118150.0,0.54806959]
[1755177979083,0.05,118170.0,118160.0,0.16926201]
[1755177979292,0.05,118180.0,118160.0,0.17231201]
[1755177979511,0.06531074,118180.0,118170.0,0.34732769]
[1755177979723,0.06531074,118180.0,118170.0,0.35037769]
[1755177980950,0.06531074,118180.0,118170.0,0.16924769]
[1755177981356,0.06531074,118180.0,118170.0,0.34680769]
[1755177981793,0.06631074,118180.0,118170.0,0.34680769]
[1755177982001,0.23454411,118180.0,118170.0,0.17756]
[1755177982433,0.23654411,118180.0,118170.0,0.17756]
[1755177982635,0.06731074,118180.0,118170.0,0.34680769]
[1755177983277,0.01731074,118180.0,118170.0,0.34985769]
[1755177983488,0.01731074,118180.0,118170.0,0.54656094]
[1755177983742,0.01831074,118180.0,118170.0,0.54656094]
[1755177984171,0.01835926,118180.0,118170.0,0.54552094]
[1755177984782,0.01535926,118180.0,118170.0,0.54552094]
[1755177985206,0.01535926,118180.0,118170.0,0.54652094]
[1755177985627,0.06535926,118180.0,118170.0,0.17696]
[1755177986059,0.05,118180.0,118170.0,0.34925769]
[1755177986297,0.05,118190.0,118180.0,0.16923337]
[1755177986501,0.0653844,118190.0,118180.0,0.17228337]
[1755177986710,0.05,118200.0,118190.0,0.16921905]
[1755177986920,0.06538619,118200.0,118190.0,0.34485905]
[1755177987133,0.01538766,118200.0,118190.0,0.5446123]
[1755177987340,0.05,118220.0,118210.0,0.16919042]
[1755177987559,0.015397,118220.0,118210.0,0.34768042]
[1755177987772,0.065397,118220.0,118210.0,0.34768042]
[1755177988014,0.015397,118220.0,118210.0,0.34768042]
[1755177988215,0.015397,118220.0,118210.0,0.54438367]
[1755177988879,1e-08,118220.0,118210.0,0.54438367]
[1755177989087,0.00312,118270.0,118260.0,0.16911889]
[1755177989088,0.0108207,118270.0,118260.0,0.16911889]
[1755177989309,0.0577007,118270.0,118260.0,0.34403889]
[1755177990804,0.0607007,118270.0,118260.0,0.17492]
[1755177991007,0.0607007,118270.0,118260.0,0.34403889]
[1755177991227,0.0647007,118270.0,118260.0,0.34403889]
[1755177991477,0.0577007,118270.0,118260.0,0.34403889]
[1755177991677,0.0597007,118270.0,118260.0,0.34403889]
[1755177991894,0.0617007,118270.0,118260.0,0.34403889]
[1755177992728,0.0617007,118270.0,118260.0,0.34708889]
[1755177992935,0.004,118270.0,118260.0,0.34708889]
[1755177993162,0.004,118270.0,118260.0,0.61154569]
[1755177993927,0.002,118270.0,118260.0,0.61154569]
[1755177994126,0.05,118280.0,118270.0,0.16910459]
[1755177994339,0.05,118280.0,118270.0,0.17215459]
[1755177994777,0.05,118290.0,118280.0,0.16909029]
[1755177994957,0.0502,118310.0,118300.0,0.1690617]
[1755177995156,0.0502,118310.0,118300.0,0.3418617]
[1755177997424,0.05,118300.0,118290.0,0.16906356]
[1755177997626,0.05311,118300.0,118290.0,0.34174356]
[1755177997831,0.05,118290.0,118280.0,0.34105027]
[1755177998242,0.05,118290.0,118280.0,0.34424027]
[1755177998601,0.05,118290.0,118280.0,0.34105027]
[1755177998799,0.0002,118310.0,118280.0,0.34105027]
[1755177998800,0.001,118300.0,118290.0,0.16907599]
[1755177999165,0.001,118300.0,118290.0,0.34382599]
[1755177999293,0.051,118300.0,118290.0,0.34063599]
[1755177999517,0.05,118290.0,118270.0,0.18074981]
[1755177999723,0.05,118290.0,118280.0,0.34053029]
[1755177999962,0.21907599,118290.0,118280.0,0.17144]
[1755178000204,0.05,118270.0,118260.0,0.17757483]
[1755178000412,0.05,118260.0,118250.0,0.16913319]
[1755178000618,0.05,118260.0,118240.0,0.1775808]
[1755178000619,0.05,118250.0,118240.0,0.16914631]
[1755178000825,0.05,118250.0,118240.0,0.34018631]
[1755178001652,0.05,118260.0,118250.0,0.16913319]
[1755178002070,0.05,118270.0,118260.0,0.17755212]
[1755178002258,0.16906348,118300.0,118290.0,0.16907599]
[1755178002479,0.015569,118310.0,118290.0,0.16907599]
[1755178002682,0.13292325,118310.0,118300.0,0.34169497]
[1755178002893,0.16907033,118300.0,118280.0,0.16908609]
[1755178003095,0.05,118290.0,118280.0,0.33956609]
[1755178003447,0.05,118290.0,118280.0,0.33957029]
[1755178004051,0.05,118290.0,118280.0,0.34276029]
[1755178004274,0.0002,118310.0,118290.0,0.16907599]
[1755178004275,0.05,118300.0,118290.0,0.16907599]
[1755178004639,0.0502,118310.0,118300.0,0.1690617]
[1755178004848,0.0502,118310.0,118300.0,0.3390217]
[1755178005062,0.0002,118310.0,118300.0,0.3390217]
[1755178005270,0.0002,118310.0,118300.0,0.3422117]
[1755178005713,0.0502,118310.0,118300.0,0.3422117]
[1755178005932,0.0502,118310.0,118300.0,0.3390217]
[1755178005933,0.0002,118310.0,118300.0,0.3390217]
[1755178006137,0.0022,118310.0,118300.0,0.3390217]
[1755178006346,0.0522,118310.0,118300.0,0.3390217]
[1755178006593,0.0502,118310.0,118300.0,0.3390217]
[1755178007655,0.0002,118310.0,118300.0,0.3422117]
[1755178007877,0.0502,118310.0,118300.0,0.3422117]
[1755178008284,0.0502,118310.0,118300.0,0.3390217]
[1755178009185,0.21924741,118310.0,118300.0,0.16996]
[1755178009388,0.05,118300.0,118290.0,0.33755599]
[1755178009594,0.2190617,118300.0,118290.0,0.16848]
[1755178009796,0.30489495,118300.0,118290.0,0.16848]
[1755178010176,0.32028755,118300.0,118290.0,0.16848]
[1755178010589,0.36728818,118300.0,118290.0,0.16848]
[1755178010788,0.15122935,118300.0,118290.0,0.33755599]
[1755178011208,0.0653961,118300.0,118290.0,0.34074599]
[1755178011407,0.0663961,118300.0,118290.0,0.34074599]
[1755178011992,0.0673961,118300.0,118290.0,0.33679599]
[1755178012194,0.2364578,118300.0,118290.0,0.16772]
[1755178012407,0.0705061,118300.0,118290.0,0.33679599]
[1755178012563,0.2395678,118300.0,118290.0,0.16772]
[1755178012762,0.36317261,118300.0,118290.0,0.16772]
[1755178013385,0.32229105,118300.0,118290.0,0.16772]
[1755178013589,0.32229105,118300.0,118290.0,0.33679599]
[1755178013800,0.32229105,118300.0,118290.0,0.16772]
[1755178014457,0.32129105,118300.0,118290.0,0.16772]
[1755178014837,0.32129105,118300.0,118260.0,0.18074212]
[1755178015053,0.2190977,118280.0,118270.0,0.1676]
[1755178015253,0.05,118280.0,118270.0,0.33670459]
[1755178016065,0.05,118280.0,118270.0,0.33989459]
[1755178016270,0.05,118290.0,118280.0,0.16909029]
[1755178017331,0.05,118280.0,118270.0,0.33989459]
[1755178017741,0.05,118290.0,118280.0,0.16909029]
[1755178017952,0.17770174,118310.0,118300.0,0.1690617]
[1755178018162,0.17770174,118310.0,118290.0,0.16906341]
[1755178018163,0.05,118300.0,118290.0,0.16906341]
[1755178018446,0.0502,118310.0,118300.0,0.1690617]
[1755178018869,0.025,118300.0,118290.0,0.33985341]
[1755178018870,0.05,118300.0,118290.0,0.33666341]
[1755178019523,0.051,118300.0,118290.0,0.33985341]
[1755178019726,0.2200617,118300.0,118290.0,0.1676]
[1755178020379,0.051,118300.0,118290.0,0.33986599]
[1755178020589,0.001,118300.0,118290.0,0.45887599]
[1755178021006,0.002,118300.0,118290.0,0.45887599]
[1755178021390,0.002,118300.0,118290.0,0.54159924]
[1755178021869,0.00773567,118350.0,118340.0,0.16900456]
[1755178022071,0.18834772,118380.0,118360.0,0.16896505]
[1755178022272,0.18834772,118380.0,118370.0,0.00211202]
[1755178022273,0.18523772,118380.0,118370.0,0.00211202]
[1755178022474,0.17668312,118380.0,118370.0,0.00422404]
[1755178022683,0.21894745,118380.0,118360.0,0.16756]
[1755178022967,0.22207173,118370.0,118360.0,0.16756]
[1755178023171,0.05,118360.0,118350.0,0.34497805]
[1755178023378,0.218976,118360.0,118350.0,0.16756]
[1755178023770,0.22981723,118360.0,118350.0,0.16756]
[1755178023962,0.22670723,118360.0,118350.0,0.33655028]
[1755178024169,0.05,118360.0,118350.0,0.33655028]
[1755178024347,0.05,118360.0,118350.0,0.33974028]
[1755178024555,0.00872853,118370.0,118350.0,0.33974028]
[1755178024754,0.10054378,118380.0,118370.0,0.16896029]
[1755178024755,0.39,118380.0,118370.0,0.16896029]
[1755178024941,0.56978612,118380.0,118360.0,0.168976]
[1755178025141,0.05,118370.0,118360.0,0.168976]
[1755178025342,0.05772853,118380.0,118370.0,0.16896173]
[1755178025547,0.05,118380.0,118370.0,0.33967173]
[1755178025946,0.00792853,118400.0,118380.0,0.16893509]
[1755178026153,0.25957069,118400.0,118390.0,0.33852484]
[1755178026353,0.32501257,118400.0,118390.0,0.16748]
[1755178026570,0.21893878,118390.0,118380.0,0.33642745]
[1755178026854,0.07317041,118390.0,118380.0,0.33642745]
[1755178027065,0.23437506,118390.0,118380.0,0.16748]
[1755178027279,0.24210656,118390.0,118380.0,0.16748]
[1755178027444,0.24516656,118390.0,118380.0,0.16748]
[1755178027646,0.07317338,118390.0,118380.0,0.33642745]
[1755178027913,0.16895459,118380.0,118350.0,0.17743979]
[1755178028130,0.2189648,118370.0,118360.0,0.16744]
[1755178028299,0.06544485,118370.0,118360.0,0.336416]
[1755178029281,0.01544485,118370.0,118360.0,0.53483925]
[1755178030192,0.01544485,118370.0,118360.0,0.452116]
[1755178030372,0.06544485,118370.0,118360.0,0.339516]
[1755178030592,0.06544485,118370.0,118360.0,0.340516]
[1755178030794,0.01544485,118370.0,118360.0,0.340516]
[1755178030984,0.01544485,118370.0,118360.0,0.53583925]
[1755178031187,0.01544485,118370.0,118360.0,0.53483925]
[1755178031829,0.01544485,118370.0,118360.0,0.53583925]
[1755178032652,0.01544485,118370.0,118360.0,0.453116]
[1755178032862,0.01544485,118370.0,118360.0,0.340396]
[1755178033085,0.05,118380.0,118370.0,0.16896173]
[1755178033301,0.23437143,118380.0,118370.0,0.16740173]
[1755178033513,0.06542398,118380.0,118370.0,0.16740173]
[1755178033724,0.06542398,118380.0,118370.0,0.17050173]
[1755178033971,0.01542398,118380.0,118370.0,0.36582498]
[1755178034835,0.06542398,118380.0,118370.0,0.36582498]
[1755178035270,0.01542398,118380.0,118370.0,0.36582498]
[1755178035476,0.06542398,118380.0,118370.0,0.33782173]
[1755178035699,0.01542398,118380.0,118370.0,0.33782173]
[1755178035904,0.3402,118400.0,118390.0,0.16893318]
[1755178036097,0.5245351,118400.0,118390.0,0.33617318]
[1755178036308,0.35561619,118400.0,118390.0,0.33617318]